[Event "22nd Hogeschool Zeeland 2018"]
[Site "Vlissingen"]
[Date "2018.08.11"]
[Round "9"]
[White "Rajesh, VAV"]
[Black "Van Delft, Merijn"]
[Result "1/2-1/2"]
[ECO "D12"]
[WhiteElo "2325"]
[BlackElo "2395"]
[Annotator "NA"]
[PlyCount "89"]
[EventDate "2018.08.04"]
[EventType "swiss"]
[EventCountry "NED"]
[SourceTitle "playchess.com"]
[Source "ChessBase"]
[SourceQuality "1"]
[TimeControl "40/5400+30:1800+30"]

1. d4 {[%emt 0:00:00]} d5 {[%emt 0:16:05]} 2. c4 {[%emt 0:00:00]} c6 {[%emt 0:00:04]} 3. Nf3 {[%emt 0:00:00]} Nf6 {[%emt 0:00:07]} 4. e3 {[%emt 0:00:08]} Bf5 {[%emt 0:00:13]} 5. Nc3 {[%emt 0:01:42]} e6 {[%emt 0:00:10]} 6. Be2 {[%emt 0:00:58]} h6 {[%emt 0:01:24]} 7. Bd3 {[%emt 0:00:36] D12: Slav Defence: 3 Nf3 Nf6 4 e3 Bf5} Bxd3 {[%emt 0:01:29]} 8. Qxd3 {[%emt 0:00:06]} Be7 {[%emt 0:02:44]} (8... Nbd7 9. O-O Bb4 10. Bd2 a5 11. a3 Bxc3 12. Bxc3 Ne4 13. Nd2 Nxd2 14. Bxd2 O-O {½-½ (53) L'Ami,E (2619)-Gupta,A (2629) Hoogeveen 2015}) 9. O-O {[%emt 0:00:40]} O-O {[%emt 0:00:12]} 10. b3 {[%emt 0:00:38]} Nbd7 {[%emt 0:00:11]} 11. Bb2 {[%emt 0:00:06]} Re8 $146 {[%emt 0:00:27]} ({Predecessor:} 11... a5 12. Rfd1 Qc7 13. e4 dxe4 14. Nxe4 Nxe4 15. Qxe4 {½-½ (28) Offinger,R (2194)-Doeres,H (2207) Germany 2016}) 12. Rfe1 {[%emt 0:16:42]} a6 {[%emt 0:06:48]} 13. e4 {[%emt 0:02:20]} dxe4 {[%emt 0:03:16]} 14. Nxe4 {[%emt 0:00:06]} Nxe4 {[%emt 0:00:21]} 15. Qxe4 {[%emt 0:00:03]} Nf6 {[%emt 0:00:38]} 16. Qe2 {[%emt 0:00:54]} Qa5 {[%emt 0:00:39]} 17. Ne5 {[%emt 0:02:51]} Rad8 {[%emt 0:00:58]} 18. a3 {[%emt 0:02:11]} Nd7 {[%emt 0:03:00]} 19. b4 {[%emt 0:10:35]} Qc7 {[%emt 0:01:28]} 20. Ng4 {[%emt 0:01:44]} Nf6 {[%emt 0:02:08]} 21. Ne5 {[%emt 0:05:11]} Nd7 {[%emt 0:00:32]} 22. Ng4 {[%emt 0:05:55]} Nf6 {[%emt 0:00:11]} 23. Ne3 {[%emt 0:00:07]} a5 {[%emt 0:06:37]} 24. bxa5 {[%emt 0:02:42]} Qxa5 {[%emt 0:00:51]} 25. Qc2 $15 {[%emt 0:10:48]} Rd7 {[%emt 0:10:38]} 26. Bc3 {[%emt 0:01:24]} Qa6 {[%emt 0:02:06]} 27. a4 {[%emt 0:01:44]} Red8 {[%emt 0:01:04]} 28. h3 {[%emt 0:05:46]} c5 {[%emt 0:04:44]} 29. d5 {[%emt 0:04:56]} exd5 {[%emt 0:00:19]} 30. cxd5 {[%emt 0:00:03]} Bf8 {[%emt 0:00:53]} 31. Bxf6 {[%emt 0:00:48]} Qxf6 {[%emt 0:00:14]} 32. Rab1 {[%emt 0:00:02]} h5 {[%emt 0:01:43]} 33. Rb5 {[%emt 0:00:15]} g6 {[%emt 0:00:43]} 34. Reb1 {[%emt 0:00:52]} Qe7 {[%emt 0:05:45]} 35. Rd1 {[%emt 0:05:13]} Qg5 {[%emt 0:07:43]} 36. Qb3 {[%emt 0:01:33]} Qe7 {[%emt 0:01:20]} 37. Qc2 {[%emt 0:04:52]} Qg5 {[%emt 0:02:03]} 38. Qc4 {[%emt 0:04:20]} Re8 {[%emt 0:01:54]} 39. Qb3 {[%emt 0:01:27]} Bd6 {[%emt 0:09:36]} 40. a5 {[%emt 0:08:07]} Rde7 {[%emt 0:02:38]} 41. Rxb7 {[%emt 0:13:32]} Rxb7 {[%emt 0:27:05]} 42. Qxb7 {[%emt 0:00:06]} Rxe3 {[%emt 0:00:22]} 43. fxe3 {[%emt 0:03:18]} Qxe3+ {[%emt 0:00:18]} 44. Kf1 {[%emt 0:00:09]} Qf4+ {[%emt 0:00:50]} 45. Kg1 {[%emt 0:01:58]} 1/2-1/2

[Event "22nd Hogeschool Zeeland 2018"]
[Site "Vlissingen"]
[Date "2018.08.11"]
[Round "9"]
[White "Bezemer, Arno J"]
[Black "Elgersma, Simon"]
[Result "0-1"]
[ECO "C07"]
[WhiteElo "2295"]
[BlackElo "2136"]
[Annotator "NA"]
[PlyCount "102"]
[EventDate "2018.08.04"]
[EventType "swiss"]
[EventCountry "NED"]
[SourceTitle "playchess.com"]
[Source "ChessBase"]
[SourceQuality "1"]
[TimeControl "40/5400+30:1800+30"]

1. e4 {[%emt 0:03:43]} e6 {[%emt 0:00:00]} 2. d4 {[%emt 0:00:10]} d5 {[%emt 0:00:00]} 3. Nd2 {[%emt 0:00:05]} c5 {[%emt 0:00:00]} 4. Ngf3 {[%emt 0:00:18]} cxd4 {[%emt 0:00:00]} 5. Nxd4 {[%emt 0:00:11]} Nc6 {[%emt 0:00:00]} 6. Bb5 {[%emt 0:00:48]} Bd7 {[%emt 0:00:30]} 7. Nxc6 {[%emt 0:01:08]} bxc6 {[%emt 0:00:02]} 8. Bd3 {[%emt 0:00:10]} Bd6 {[%emt 0:00:11]} 9. Qe2 {[%emt 0:04:39]} e5 {[%emt 0:01:38]} 10. f4 {[%emt 0:08:40]} exf4 {[%emt 0:28:38]} 11. exd5+ {[%emt 0:01:20]} Ne7 {[%emt 0:01:54]} 12. Ne4 {[%emt 0:21:02]} Be5 {[%emt 0:04:32]} 13. Ng5 {[%emt 0:11:17]} Qc7 {[%emt 0:20:16]} 14. dxc6 {[%emt 0:05:12]} Bxc6 {[%emt 0:02:22]} 15. Bc4 $11 {[%emt 0:02:52]} Bd5 {[%emt 0:06:52]} 16. Bxd5 {[%emt 0:03:55]} Qa5+ {[%emt 0:02:28]} 17. Qd2 {[%emt 0:07:01]} Qxd2+ {[%emt 0:07:03]} 18. Bxd2 {[%emt 0:01:06]} Nxd5 {[%emt 0:00:09]} 19. O-O-O {[%emt 0:04:08]} f6 {[%emt 0:05:50]} 20. Rhe1 {[%emt 0:02:54]} O-O {[%emt 0:01:47]} 21. Nf3 {[%emt 0:00:20]} Rfe8 {[%emt 0:00:58]} 22. c4 {[%emt 0:07:45]} Rac8 {[%emt 0:02:19]} 23. b3 {[%emt 0:00:07]} Kf7 {[%emt 0:03:55]} 24. Kc2 {[%emt 0:02:56]} g5 {[%emt 0:01:55]} 25. Kd3 {[%emt 0:01:27]} Nb6 {[%emt 0:03:01]} 26. Nxe5+ {[%emt 0:05:07]} fxe5 {[%emt 0:01:16]} 27. Ke4 {[%emt 0:01:45]} Ke6 {[%emt 0:03:00]} 28. Bc3 {[%emt 0:00:49]} Nd7 {[%emt 0:00:42]} 29. Kf3 {[%emt 0:00:09]} Rc7 {[%emt 0:01:32]} 30. Bxe5 {[%emt 0:03:09]} Nxe5+ {[%emt 0:01:16]} 31. Rxe5+ {[%emt 0:00:05]} Kxe5 {[%emt 0:00:04]} 32. Re1+ {[%emt 0:00:04]} Kf5 {[%emt 0:00:19]} 33. Rxe8 {[%emt 0:00:06]} g4+ {[%emt 0:01:28]} 34. Ke2 {[%emt 0:00:17]} h5 {[%emt 0:00:18]} 35. Rf8+ {[%emt 0:00:11]} Ke4 {[%emt 0:00:34]} 36. Re8+ {[%emt 0:00:24]} Kf5 {[%emt 0:00:18]} 37. Kd3 {[%emt 0:01:44]} Rd7+ {[%emt 0:00:06]} 38. Kc2 {[%emt 0:00:56]} f3 {[%emt 0:00:24]} 39. Rf8+ {[%emt 0:00:16]} Ke4 {[%emt 0:00:13]} 40. gxf3+ {[%emt 0:00:25]} gxf3 {[%emt 0:00:07]} 41. c5 {[%emt 0:02:21]} Ke3 {[%emt 0:10:43]} 42. b4 {[%emt 0:18:52]} f2 {[%emt 0:01:41]} 43. a4 {[%emt 0:07:56]} Rd4 {[%emt 0:04:56]} 44. Rxf2 {[%emt 0:01:15]} Kxf2 {[%emt 0:01:04]} 45. Kc3 {[%emt 0:00:01]} Ke3 {[%emt 0:04:01]} 46. c6 {[%emt 0:00:11]} Rd8 {[%emt 0:02:34]} 47. Kc4 {[%emt 0:02:16]} Ke4 {[%emt 0:00:16]} 48. a5 {[%emt 0:01:45]} Ke5 {[%emt 0:01:10]} 49. Kc5 {[%emt 0:00:32]} Rd5+ {[%emt 0:02:03]} 50. Kc4 {[%emt 0:00:02]} Rd1 {[%emt 0:00:21]} 51. Kb5 {[%emt 0:00:24]} Kd6 {[%emt 0:00:17]} 0-1

[Event "22nd Hogeschool Zeeland 2018"]
[Site "Vlissingen"]
[Date "2018.08.11"]
[Round "9"]
[White "De Boer, Eelke"]
[Black "De Boer, Bas"]
[Result "1-0"]
[ECO "B48"]
[WhiteElo "2292"]
[BlackElo "2129"]
[Annotator "NA"]
[PlyCount "51"]
[EventDate "2018.08.04"]
[EventType "swiss"]
[EventCountry "NED"]
[SourceTitle "playchess.com"]
[Source "ChessBase"]
[SourceQuality "1"]
[TimeControl "40/5400+30:1800+30"]

1. e4 {[%emt 0:03:07]} c5 {[%emt 0:00:00]} 2. Nf3 {[%emt 0:00:06]} e6 {[%emt 0:00:00]} 3. d4 {[%emt 0:00:04]} cxd4 {[%emt 0:00:00]} 4. Nxd4 {[%emt 0:00:08]} Nc6 {[%emt 0:00:00]} 5. Nc3 {[%emt 0:02:46]} Qc7 {[%emt 0:00:04]} 6. Be3 {[%emt 0:00:09]} a6 {[%emt 0:00:05]} 7. Qf3 {[%emt 0:00:06]} Ne5 {[%emt 0:00:06]} 8. Qg3 {[%emt 0:00:08]} b5 {[%emt 0:00:03]} 9. O-O-O {[%emt 0:00:17]} Nf6 {[%emt 0:00:07]} 10. f4 {[%emt 0:00:26]} Neg4 {[%emt 0:00:06]} 11. Bd2 {[%emt 0:00:09]} Qa7 {[%emt 0:00:10]} 12. h3 {[%emt 0:00:12]} b4 {[%emt 0:00:11]} 13. Nd5 {[%emt 0:19:18]} Nxd5 {[%emt 0:05:05]} 14. hxg4 {[%emt 0:01:48]} Qxd4 {[%emt 0:12:12]} 15. exd5 {[%emt 0:00:10]} Qxd5 {[%emt 0:00:05]} 16. Bxb4 {[%emt 0:00:17]} Qxa2 {[%emt 0:00:10]} 17. Bxf8 {[%emt 0:00:09]} Kxf8 {[%emt 0:00:23]} 18. Qc3 {[%emt 0:06:30]} Rb8 {[%emt 0:01:59]} 19. Bd3 {[%emt 0:10:57]} Qa1+ {[%emt 0:03:53]} 20. Kd2 {[%emt 0:02:08]} Qxb2 {[%emt 0:00:27]} 21. Qc5+ {[%emt 0:01:17]} d6 {[%emt 0:02:12]} 22. Qxd6+ {[%emt 0:03:26]} Ke8 {[%emt 0:00:07]} 23. Rb1 {[%emt 0:09:58]} Qxb1 {[%emt 0:00:06]} 24. Rxb1 {[%emt 0:00:12]} Rxb1 {[%emt 0:00:05]} 25. Be4 {[%emt 0:01:24]} Bd7 {[%emt 0:02:50]} 26. c4 {[%emt 0:00:32]} 1-0

[Event "22nd Hogeschool Zeeland 2018"]
[Site "Vlissingen"]
[Date "2018.08.11"]
[Round "9"]
[White "Vedder, Richard"]
[Black "Timmermans, Mark"]
[Result "0-1"]
[ECO "E29"]
[WhiteElo "2284"]
[BlackElo "2383"]
[Annotator "NA"]
[PlyCount "108"]
[EventDate "2018.08.04"]
[EventType "swiss"]
[EventCountry "NED"]
[SourceTitle "playchess.com"]
[Source "ChessBase"]
[SourceQuality "1"]
[TimeControl "40/5400+30:1800+30"]

1. d4 {[%emt 0:00:00]} Nf6 {[%emt 0:00:00]} 2. c4 {[%emt 0:00:00]} e6 {[%emt 0:00:00]} 3. Nc3 {[%emt 0:00:00]} Bb4 {[%emt 0:00:46]} 4. a3 {[%emt 0:00:06]} Bxc3+ {[%emt 0:00:16]} 5. bxc3 {[%emt 0:00:02]} d6 {[%emt 0:00:34]} 6. e3 {[%emt 0:02:04]} O-O {[%emt 0:03:59]} 7. Bd3 {[%emt 0:00:06]} c5 {[%emt 0:02:17]} 8. Nf3 {[%emt 0:01:26]} Nc6 {[%emt 0:00:49]} 9. O-O {[%emt 0:01:27]} b6 {[%emt 0:00:44]} 10. d5 {[%emt 0:03:59] E29: Nimzo-Indian: Sämisch: 5...0-0 6 e3 c5 7 Bd3 Nc6} Ne7 {[%emt 0:08:34]} 11. e4 {[%emt 0:00:43]} e5 {[%emt 0:00:15]} 12. Bg5 {[%emt 0:04:56]} (12. Nh4 Ng6 13. Nf5 Nf4 14. Bxf4 exf4 15. Qf3 Bxf5 16. exf5 Re8 17. Qxf4 Qe7 {½-½ (33) Vachier Lagrave,M (2819)-Nakamura,H (2791) chess.com INT 2016}) 12... Ng6 {[%emt 0:01:56]} 13. Nh4 {[%emt 0:00:44]} h6 $146 {[%emt 0:03:54]} ({Predecessor:} 13... Re8 14. Nf5 h6 15. Bd2 Ne7 16. Nxe7+ Qxe7 17. a4 Bg4 18. Be2 Bxe2 19. Qxe2 a5 20. Rab1 Rab8 21. Rb5 Nd7 {½-½ (21) Polushkina,S (2070)-Heinrich,S Neumuenster 1999}) 14. Nxg6 {[%emt 0:00:22]} fxg6 {[%emt 0:00:16]} 15. Bd2 {[%emt 0:00:28]} Nh5 {[%emt 0:00:59]} 16. g3 {[%emt 0:04:23]} Bh3 {[%emt 0:12:30]} 17. Re1 {[%emt 0:00:30]} Qd7 {[%emt 0:00:08]} 18. Bf1 {[%emt 0:04:52]} Rf7 {[%emt 0:00:47]} 19. Bg2 {[%emt 0:00:09]} Raf8 {[%emt 0:01:39]} 20. Rf1 {[%emt 0:00:36]} Nf6 {[%emt 0:03:38]} 21. Qc2 {[%emt 0:03:50]} Nh5 {[%emt 0:01:27]} 22. Qd1 {[%emt 0:05:36]} Bxg2 {[%emt 0:14:57]} 23. Kxg2 {[%emt 0:00:32]} Rf3 {[%emt 0:00:11]} 24. a4 {[%emt 0:05:56]} Qg4 {[%emt 0:02:21]} 25. Qc2 {[%emt 0:00:11] [#]} g5 $2 {[%emt 0:12:03]} (25... Nxg3 $1 {[%mdl 512]} 26. hxg3 (26. fxg3 Rxf1) 26... h5) 26. Rae1 {[%emt 0:05:05] [#]} Nf6 $19 {[%emt 0:00:49]} 27. h3 {[%emt 0:08:36]} Qh5 {[%emt 0:00:03]} 28. Be3 {[%emt 0:13:49]} g4 {[%emt 0:00:37]} 29. h4 {[%emt 0:00:05]} Qg6 {[%emt 0:00:11]} 30. Bc1 {[%emt 0:01:16]} Nh5 {[%emt 0:00:23]} 31. Be3 {[%emt 0:02:12]} Nf6 {[%emt 0:00:19]} 32. Bc1 {[%emt 0:00:05]} Nh5 {[%emt 0:00:03]} 33. Be3 {[%emt 0:00:04]} Qf6 {[%emt 0:00:48]} 34. Qe2 {[%emt 0:03:17]} Nf4+ {[%emt 0:05:01]} 35. Bxf4 {[%emt 0:00:25]} exf4 {[%emt 0:00:04]} 36. e5 {[%emt 0:00:08]} dxe5 {[%emt 0:03:31]} 37. Qxe5 {[%emt 0:00:13]} Qxe5 {[%emt 0:00:43]} 38. Rxe5 {[%emt 0:00:02]} fxg3 {[%emt 0:00:08]} 39. Re3 {[%emt 0:01:43]} Rxf2+ {[%emt 0:01:26]} 40. Rxf2 {[%emt 0:00:04]} gxf2 {[%emt 0:00:06]} 41. Kf1 {[%emt 0:30:07]} h5 {[%emt 0:30:41]} 42. d6 {[%emt 0:01:56]} Rd8 {[%emt 0:03:27]} 43. Rd3 {[%emt 0:00:20]} Kf7 {[%emt 0:01:11]} 44. Kxf2 {[%emt 0:00:35]} Ke6 {[%emt 0:00:17]} 45. Rd5 {[%emt 0:00:05]} g6 {[%emt 0:00:23]} 46. Rg5 {[%emt 0:00:05]} Rg8 {[%emt 0:00:16]} 47. Rd5 {[%emt 0:00:21]} Kd7 {[%emt 0:00:12]} 48. a5 {[%emt 0:00:20]} Rf8+ {[%emt 0:00:20]} 49. Ke3 {[%emt 0:00:07]} Rf6 {[%emt 0:00:29]} 50. axb6 {[%emt 0:00:05]} axb6 {[%emt 0:00:04]} 51. Ke4 {[%emt 0:00:19]} Rxd6 {[%emt 0:00:37]} 52. Rg5 {[%emt 0:00:06]} Re6+ {[%emt 0:01:36]} 53. Kd5 {[%emt 0:00:08]} Rf6 {[%emt 0:00:03]} 54. Ke4 {[%emt 0:00:09]} Ke7 {[%emt 0:00:11]} 0-1

[Event "22nd Hogeschool Zeeland 2018"]
[Site "Vlissingen"]
[Date "2018.08.11"]
[Round "9"]
[White "Frayna, Janelle Mae"]
[Black "Schoppen, Casper"]
[Result "0-1"]
[ECO "E09"]
[WhiteElo "2278"]
[BlackElo "2395"]
[Annotator "NA"]
[PlyCount "146"]
[EventDate "2018.08.04"]
[EventType "swiss"]
[EventCountry "NED"]
[SourceTitle "playchess.com"]
[Source "ChessBase"]
[SourceQuality "1"]
[TimeControl "40/5400+30:1800+30"]

1. d4 {[%emt 0:00:00]} Nf6 {[%emt 0:00:02]} 2. c4 {[%emt 0:00:00]} e6 {[%emt 0:00:06]} 3. g3 {[%emt 0:00:00]} d5 {[%emt 0:01:15]} 4. Nf3 {[%emt 0:00:15]} Be7 {[%emt 0:00:12]} 5. Bg2 {[%emt 0:00:04]} O-O {[%emt 0:00:06]} 6. O-O {[%emt 0:00:06]} c6 {[%emt 0:00:17]} 7. Qc2 {[%emt 0:00:58]} Nbd7 {[%emt 0:00:12]} 8. Nbd2 {[%emt 0:02:40]} b6 {[%emt 0:00:31]} 9. e4 {[%emt 0:00:13]} Bb7 {[%emt 0:00:42]} 10. e5 {[%emt 0:00:42]} Ne8 {[%emt 0:00:10]} 11. cxd5 {[%emt 0:00:21]} cxd5 {[%emt 0:00:15]} 12. Re1 {[%emt 0:10:12]} Rc8 {[%emt 0:02:51]} 13. Qd3 {[%emt 0:01:45] E09: Closed Catalan: Main Line: 7 Qc2 c6 8 Nbd2} (13. Qd1 Qc7 14. Nb1 b5 15. Bf1 b4 16. Bd3 h6 17. Bf4 Qb6 18. Nbd2 Ba6 19. Bc2 f5 20. exf6 Rxf6 {1-0 (32) Gelfand,B (2729)-Stupak,K (2573) Tbilisi 2017}) 13... Qc7 {[%emt 0:02:29]} 14. Nf1 {[%emt 0:04:59]} Qc2 {[%emt 0:02:40]} 15. Qxc2 {[%emt 0:00:56]} Rxc2 {[%emt 0:00:06]} 16. Ne3 {[%emt 0:12:33]} Rc8 {[%emt 0:01:32]} 17. Bd2 {[%emt 0:02:06]} Nc7 {[%emt 0:06:11]} 18. Rac1 {[%emt 0:03:59]} Nb8 $146 {[%emt 0:02:26]} ({Predecessor:} 18... a5 19. a3 Nb5 20. Bf1 Na7 {½-½ (57) Markowski,T (2584)-Gordon,S (2490) Dresden 2007}) 19. Nc2 {[%emt 0:04:23]} a5 {[%emt 0:02:35]} 20. Bg5 {[%emt 0:02:45]} Bxg5 {[%emt 0:01:24]} 21. Nxg5 {[%emt 0:00:04]} Ba6 {[%emt 0:04:35]} 22. f4 {[%emt 0:05:07]} Nc6 {[%emt 0:04:31]} 23. Red1 {[%emt 0:03:07]} Be2 {[%emt 0:17:49]} 24. Rd2 {[%emt 0:00:16]} Bh5 {[%emt 0:00:32] [#]} 25. g4 {[%emt 0:03:30]} (25. f5 $1 $16 {[%mdl 512]}) 25... Bg6 {[%emt 0:02:25]} 26. Ne3 {[%emt 0:03:38]} Ne7 {[%emt 0:03:10]} 27. Rf1 $11 {[%emt 0:01:53]} f5 {[%emt 0:06:35]} 28. Nxe6 {[%emt 0:11:57]} Nxe6 {[%emt 0:00:44]} 29. Nxd5 {[%emt 0:01:04]} Nxd5 {[%emt 0:05:41]} 30. Bxd5 {[%emt 0:00:03]} Kf7 {[%emt 0:09:19]} 31. Bb3 {[%emt 0:03:57]} Rfd8 {[%emt 0:04:01]} 32. d5 {[%emt 0:00:52]} Ke7 {[%emt 0:11:40]} 33. d6+ {[%emt 0:05:44]} Kf7 {[%emt 0:00:59]} 34. Bc2 {[%emt 0:00:06]} Rxc2 {[%emt 0:01:13]} 35. Rxc2 {[%emt 0:00:05]} Nc5 {[%emt 0:00:54]} 36. Rc4 {[%emt 0:08:05]} Ke6 {[%emt 0:01:32]} 37. b4 {[%emt 0:01:05]} axb4 {[%emt 0:01:00]} 38. Rxb4 {[%emt 0:00:04]} Nd7 {[%emt 0:00:36]} 39. h3 {[%emt 0:05:39]} Rc8 {[%emt 0:00:11]} 40. a4 {[%emt 0:00:51]} h5 {[%emt 0:00:47]} 41. g5 {[%emt 0:32:03]} h4 {[%emt 0:30:23]} 42. Rf2 {[%emt 0:02:03]} Rc3 {[%emt 0:01:08]} 43. Kg2 {[%emt 0:00:00]} Bh5 {[%emt 0:00:00]} 44. Rd4 {[%emt 0:00:00]} Rc1 {[%emt 0:00:00]} 45. Rf1 {[%emt 0:00:00]} Rc2+ {[%emt 0:00:00]} 46. Rf2 {[%emt 0:00:00]} Rc3 {[%emt 0:00:00]} 47. Rdd2 {[%emt 0:00:00]} Ra3 {[%emt 0:00:00]} 48. Rd4 {[%emt 0:00:00]} Rc3 {[%emt 0:00:00]} 49. Rdd2 {[%emt 0:00:00]} Nc5 {[%emt 0:00:00]} 50. Rc2 {[%emt 0:00:00]} Ra3 {[%emt 0:00:00]} 51. Ra2 {[%emt 0:00:00]} Bf3+ {[%emt 0:00:00]} 52. Kh2 {[%emt 0:00:00]} Re3 {[%emt 0:00:00]} 53. a5 {[%emt 0:00:00]} bxa5 {[%emt 0:00:03]} 54. Rxa5 {[%emt 0:00:00]} Nd7 {[%emt 0:00:24]} 55. Raa2 {[%emt 0:00:00]} Be4 {[%emt 0:02:08]} 56. Rae2 {[%emt 0:00:00]} Rc3 {[%emt 0:00:08]} 57. Re1 {[%emt 0:00:00]} Nc5 {[%emt 0:01:37]} 58. Ref1 {[%emt 0:00:00]} Bc6 {[%emt 0:02:09]} 59. Rd1 {[%emt 0:00:00]} Nd7 {[%emt 0:00:58]} 60. Rdf1 {[%emt 0:00:00]} Ra3 {[%emt 0:00:33]} 61. Rc1 {[%emt 0:00:00]} Be4 {[%emt 0:02:23]} 62. Rd1 {[%emt 0:00:00]} Nf8 {[%emt 0:00:47]} 63. Rfd2 {[%emt 0:00:17]} Kd7 {[%emt 0:00:23]} 64. Re1 {[%emt 0:01:40]} g6 {[%emt 0:01:12]} 65. Rc1 {[%emt 0:03:50]} Ne6 {[%emt 0:00:06]} 66. Rf1 {[%emt 0:00:48]} Ra4 {[%emt 0:01:19]} 67. Rc1 {[%emt 0:00:15]} Ba8 {[%emt 0:02:22]} 68. Rb2 {[%emt 0:03:27]} Rxf4 {[%emt 0:00:57]} 69. Ra2 {[%emt 0:00:13]} Be4 {[%emt 0:00:27]} 70. Ra7+ {[%emt 0:00:25]} Kd8 {[%emt 0:00:04]} 71. Re7 {[%emt 0:03:49]} Nxg5 {[%emt 0:00:24]} 72. Rc2 {[%emt 0:00:35]} Bxc2 {[%emt 0:00:54]} 73. e6 {[%emt 0:00:00]} Rf2+ {[%emt 0:00:11]} 0-1

[Event "22nd Hogeschool Zeeland 2018"]
[Site "Vlissingen"]
[Date "2018.08.11"]
[Round "9"]
[White "Ijzermans, Cees"]
[Black "Rijnaarts, Sjef"]
[Result "0-1"]
[ECO "D11"]
[WhiteElo "2142"]
[BlackElo "2339"]
[Annotator "NA"]
[PlyCount "90"]
[EventDate "2018.08.04"]
[EventType "swiss"]
[EventCountry "NED"]
[SourceTitle "playchess.com"]
[Source "ChessBase"]
[SourceQuality "1"]
[TimeControl "40/5400+30:1800+30"]

1. d4 {[%emt 0:08:33]} d5 {[%emt 0:00:00]} 2. c4 {[%emt 0:00:11]} c6 {[%emt 0:00:00]} 3. Nf3 {[%emt 0:00:04]} Nf6 {[%emt 0:00:00]} 4. e3 {[%emt 0:00:03]} Bg4 {[%emt 0:00:04]} 5. h3 {[%emt 0:00:07]} Bh5 {[%emt 0:00:05]} 6. Nc3 {[%emt 0:00:06]} e6 {[%emt 0:00:17]} 7. g4 {[%emt 0:00:34]} Bg6 {[%emt 0:00:13]} 8. Ne5 {[%emt 0:00:06] D11: Damengambit (Slawische Verteidigung)} Nbd7 {[%emt 0:00:56]} 9. Nxg6 {[%emt 0:00:09]} hxg6 {[%emt 0:00:07]} 10. Qb3 {[%emt 0:00:04]} (10. g5 Ne4 11. Nxe4 dxe4 12. h4 Bb4+ 13. Bd2 Qa5 14. a3 Bxd2+ 15. Qxd2 Qxd2+ 16. Kxd2 {½-½ (35) Ding,L (2777)-Saric,I (2669) Riadh 2017}) 10... Qb6 {[%emt 0:03:31]} 11. Qc2 $146 {[%emt 0:00:52]} ({Vorgänger:} 11. Bg2 g5 12. Bd2 Be7 13. O-O-O Qxb3 14. axb3 O-O-O {1-0 (49) Kuzubov,Y (2660)-Goganov,A (2576) Ankara 2018}) 11... dxc4 {[%emt 0:19:05]} 12. Bxc4 {[%emt 0:00:27]} O-O-O {[%emt 0:14:59]} 13. g5 {[%emt 0:11:36]} Nd5 {[%emt 0:04:03]} 14. e4 {[%emt 0:07:09]} Nb4 {[%emt 0:04:00]} 15. Qe2 {[%emt 0:21:45]} Qxd4 {[%emt 0:01:27]} 16. Kf1 {[%emt 0:01:20]} Nb6 {[%emt 0:07:35]} 17. Bb3 {[%emt 0:04:11]} Qd3 {[%emt 0:42:08]} 18. Be3 {[%emt 0:00:10]} Qxe2+ {[%emt 0:00:00]} 19. Kxe2 {[%emt 0:00:10]} Nd3 {[%emt 0:00:00]} 20. Rad1 $19 {[%emt 0:03:22]} (20. Nd5 $17 {war nötig.}) 20... Nxb2 {[%emt 0:00:00]} 21. Rxd8+ {[%emt 0:05:49]} Kxd8 {[%emt 0:00:00]} 22. Rb1 {[%emt 0:00:50]} Bb4 {[%emt 0:00:00]} 23. Nb5 {[%emt 0:09:25]} cxb5 {[%emt 0:00:00]} 24. Rxb2 {[%emt 0:06:37]} Ba5 {[%emt 0:00:00]} 25. a4 {[%emt 0:03:59]} Bc3 {[%emt 0:00:00]} 26. Rb1 {[%emt 0:03:18]} b4 {[%emt 0:00:00]} 27. a5 {[%emt 0:00:24]} Nc8 {[%emt 0:00:00]} 28. Rd1+ {[%emt 0:00:05]} Kc7 {[%emt 0:00:00]} 29. Bf4+ {[%emt 0:00:05]} e5 {[%emt 0:00:00]} 30. Be3 {[%emt 0:00:42]} f6 {[%emt 0:00:00]} 31. Be6 {[%emt 0:03:26]} Rd8 {[%emt 0:00:00]} 32. Rxd8 {[%emt 0:03:42]} Kxd8 {[%emt 0:00:00]} 33. Kd3 {[%emt 0:01:47]} fxg5 {[%emt 0:02:37]} 34. Bxg5+ {[%emt 0:00:41]} Kc7 {[%emt 0:00:18]} 35. Be3 {[%emt 0:00:27]} b6 {[%emt 0:00:46]} 36. Bxc8 {[%emt 0:00:30]} Kxc8 {[%emt 0:00:06]} 37. axb6 {[%emt 0:00:46]} a5 {[%emt 0:00:43]} 38. Kc4 {[%emt 0:00:05]} Kb7 {[%emt 0:00:22]} 39. f4 {[%emt 0:04:14]} exf4 {[%emt 0:00:39]} 40. Bxf4 {[%emt 0:00:22]} Kxb6 {[%emt 0:00:07]} 41. Bd6 {[%emt 0:04:16]} Kc6 {[%emt 0:00:07]} 42. Be7 {[%emt 0:01:59]} Kd7 {[%emt 0:01:47]} 43. Bc5 {[%emt 0:01:40]} Ke6 {[%emt 0:00:14]} 44. Bb6 {[%emt 0:01:28]} a4 {[%emt 0:00:05]} 45. Bc7 {[%emt 0:04:44]} Be5 {[%emt 0:00:24] Kd4 [%clk 0:00:00]} 0-1